Workbook

Sheet HP入口 (hidden)

Sheet 入力シート
A3: （令和４年１月以降の料率を適用）
A11: 【あなたの申告方法等を入力ください】
C12: ①申告方法・経営形態は何ですか？ | T12: ②保険開始月は、いつですか？
U13: （個人は、１月ｽﾀｰﾄ）
E14: 青色申告（簡易） | M14: 個人 | V14: R | W14: 5 | Y14: 年 | AA14: 1 | AC14: 月
V16: ※法人は、税の会計期間＝保険期間（１年間）
A18: 【基準収入の入力について】
C19: ③ | E19: 翌期(保険期間中)の農産物の販売収入は、どのくらいを見込んでいますか？ （目標販売金額）
E22: 1000000 | P22: 円
E24: ※補償内容は、最大補償を選択しています。
A26: 【もし、保険期間中の収入が減少したら？被害を想定して販売収入を入力してみましょう？】
C27: ④ | E27: 減収した農業収入金額を入力してみましょう
E30: 400000 | P30: 円
B37: 【保険方式】
C38: 1.保険方式(掛捨て部分)の補償限度額は？ | T38: 2.保険方式(掛捨て部分)の支払率は？
F40: 80 | K40: ％ | W40: 90 | AB40: ％
B44: 【積立方式】※こちらはオプションのため、『選択しない』を選ぶことも可能です。
C45: 3.積立方式(積立て部分)の補償幅は？ | T45: 4.積立方式(積立て部分)の支払率は？
F47: 10 | K47: =IF(F47="選択なし","","％") -> ％ | W47: 90 | AB47: =IF(W47="設定なし","","％") -> ％
B51: 【補償の下限の設定について】 | AB51: ≪補償イメージ図≫
C52: ⑨保険方式の補償限度に下限(補償しない部分)を 設定しますか？
F54: 設定なし | K54: =IF(F54="設定なし","","％") -> 
B66: 簡易シミュレーションになりますので、
B67: 詳しくは、最寄りのNOSAIまでお問い合わせください！

Sheet 算出シート
A1: 農業経営収入保険 保険料等試算シート 料率改定版 （令和5年加入申請時） | X1: 仮に、保険加入後の農業収入が | AC1: 受け取れる金額は…
X2: =入力シート!E30 -> 400000 | AA2: 円 とすると… | AC2: =IF(読込!P21<=0,0,IF(X2="","",IF(読込!P21>=算出シート!M41,算出シート!M41,読込!P21))) -> 450000 | AF2: 円
H3: 自動継続特約あり | R3: 継続加入 | AD3: 基準収入金額：
A6: 始期年月 | B6: 令和 | C6: 5 | E6: 年 | F6: 1 | H6: 月 | J6: 氏名 | N6: 共済 太郎 | U6: 様
A9: 申告の 種類 | J9: 住所 | N9: 上尾市大字西門前523-1
C10: 青色申告（複式）
J13: 連絡先 | N13: 048-779-6911
A14: 基準金額 | C14: =入力シート!E22 -> 1000000 | H14: 円
A19: 保険方式 | B19: 補償割合 | C19: =入力シート!F40 -> 80 | F19: 補償割合 （下限） | H19: =入力シート!F54 -> 設定なし | N19: 支払率 | P19: =入力シート!W40 -> 90
A23: 積立方式 | B23: 補償幅 | C23: =入力シート!F47 -> 10 | N23: 支払率 | P23: =入力シート!W47 -> 90
F24: =IF(OR(OR(AND($P$23>50,$P$19=50),AND($P$23>60,$P$19=60),AND($P$23>70,$P$19=70),AND($P$23>80,$P$19=80)),OR(AND($C$19<=70,$H$19=70), AND($C$19<=60,$H$19=60), AND($C$19=50,$H$19=50))),"エラー！","") -> 
F26: =IF(OR(AND($P$23>50,$P$19=50),AND($P$23>60,$P$19=60),AND($P$23>70,$P$19=70),AND($P$23>80,$P$19=80)),"積立方式の支払率は、保険方式の支払率以下で設定してください。",IF(OR(AND($C$19<=70,$H$19=70),AND($C$19<=60,$H$19=60),AND($C$19=50,$H$19=50)),"下限設定は、保険方式未満の割合で設定してください。","")) -> 
A27: 保険料率 | B27: 0 | C27: =VLOOKUP(掛金率!A2,掛金率!A7:C384,3,FALSE) -> 2.46
A30: 納入金額 （年額） | B30: 保険料 | C30: =INT(PRODUCT(INT(INT(C14*C19*0.01)*P19*0.01),C27,0.01))-INT(PRODUCT(INT(INT(C14*C19*0.01)*P19*0.01),C27,0.01,0.5)) -> 8856 | I30: 合計 | N30: =C30+C32+C34 -> 15138
H31: 円 | T31: 円
B32: 付加保険料 （事務費） | C32: =IF(読込!D14=TRUE,IF(読込!G14=TRUE,読込!D18,読込!C18),読込!B18) -> 6282 | I32: 経理処理 | L32: 経費 | N32: =C30+C32 -> 15138
H33: 円 | T33: 円
B34: 積立金 | C34: =IFERROR(VLOOKUP(読込!A34,読込!B34:C35,2,FALSE)," ") -> 0 | L34: 預け金 | N34: =読込!C34 -> 22500
H35: 円 | T35: 円
A36: ※ 上記金額には誤差が出る場合がございますので、あらかじめご了承願います。
A38: 補てん限度額※図参照
M39: =IF(C23="選択なし",INT(C14*C19*0.01),INT(C14*C23*0.01)+INT(C14*C19*0.01)) -> 900000
A40: （下回ると補てん金の対象となる金額） | U40: 円
A41: 補償金額 | M41: =IF(C23="選択なし",INT((算出シート!C14*(算出シート!C19-IF(H19="設定なし",0,H19))*0.01)*算出シート!P19*0.01),INT((算出シート!C14*算出シート!C23*0.01)*算出シート!P23*0.01)+INT((算出シート!C14*(算出シート!C19-IF(H19="設定なし",0,H19))*0.01)*算出シート!P19*0.01)) -> 810000
A42: （補償される最高金額） | U42: 円
A46: 上記試算したことを、ここに証明します。 | M46: =TODAY() -> 2022-06-06
A48: 埼玉県農業共済組合 | K48: 担当職員：
B58: 振替年月日及び支払金額 | H58: 分割回数 | K58: ９回
B59: 年月 | C59: 支払金額
G60: 保険料 | K60: 積立金 | R60: 付加保険料
B61: =読込!L3 -> 2022-12-01 | C61: =SUM(G61,K61,R61) -> 7266 | F61: 円 | G61: =IF(K58="一括支払",C30,C30-SUM(G62:I69)) -> 984 | J61: 円 | K61: =IF(K58="一括支払",C34,C34-SUM(K62:O69)) -> 0 | P61: 円 | R61: =C32 -> 6282 | W61: 円
B62: =IF($K$58="９回",EDATE(B61,1),IF($K$58="５回",EDATE(B61,2),IF($K$58="３回",EDATE(B61,4),IF($K$58="２回",EDATE(B61,8),"")))) -> 2023-01-01 | C62: =IF(OR($K$58="９回",$K$58="５回",$K$58="３回",$K$58="２回"),SUM(G62,K62,R62),"") -> 984 | F62: 円 | G62: =IF(OR($K$58="９回",$K$58="５回",$K$58="３回",$K$58="２回"),INT($C$30/VLOOKUP($K$58,読込!$H$3:$I$7,2,FALSE)),"") -> 984 | J62: 円 | K62: =IF(OR($K$58="９回",$K$58="５回",$K$58="３回",$K$58="２回"),INT($C$34/VLOOKUP($K$58,読込!$H$3:$I$7,2,FALSE)),"") -> 0 | P62: 円 | W62: 円
B63: =IF($K$58="９回",EDATE(B62,1),IF($K$58="５回",EDATE(B62,2),IF($K$58="３回",EDATE(B62,4),""))) -> 2023-02-01 | C63: =IF(OR($K$58="９回",$K$58="５回",$K$58="３回"),SUM(G63,K63,R63),"") -> 984 | F63: 円 | G63: =IF(OR($K$58="９回",$K$58="５回",$K$58="３回"),INT($C$30/VLOOKUP($K$58,読込!$H$3:$I$7,2,FALSE)),"") -> 984 | J63: 円 | K63: =IF(OR($K$58="９回",$K$58="５回",$K$58="３回"),INT($C$34/VLOOKUP($K$58,読込!$H$3:$I$7,2,FALSE)),"") -> 0 | P63: 円 | W63: 円
B64: =IF($K$58="９回",EDATE(B63,1),IF($K$58="５回",EDATE(B63,2),"")) -> 2023-03-01 | C64: =IF(OR($K$58="９回",$K$58="５回"),SUM(G64,K64,R64),"") -> 984 | F64: 円 | G64: =IF(OR($K$58="９回",$K$58="５回"),INT($C$30/VLOOKUP($K$58,読込!$H$3:$I$7,2,FALSE)),"") -> 984 | J64: 円 | K64: =IF(OR($K$58="９回",$K$58="５回"),INT($C$34/VLOOKUP($K$58,読込!$H$3:$I$7,2,FALSE)),"") -> 0 | P64: 円 | W64: 円
B65: =IF($K$58="９回",EDATE(B64,1),IF($K$58="５回",EDATE(B64,2),"")) -> 2023-04-01 | C65: =IF(OR($K$58="９回",$K$58="５回"),SUM(G65,K65,R65),"") -> 984 | F65: 円 | G65: =IF(OR($K$58="９回",$K$58="５回"),INT($C$30/VLOOKUP($K$58,読込!$H$3:$I$7,2,FALSE)),"") -> 984 | J65: 円 | K65: =IF(OR($K$58="９回",$K$58="５回"),INT($C$34/VLOOKUP($K$58,読込!$H$3:$I$7,2,FALSE)),"") -> 0 | P65: 円 | W65: 円
B66: =IF($K$58="９回",EDATE(B65,1),"") -> 2023-05-01 | C66: =IF($K$58="９回",SUM(G66,K66,R66),"") -> 984 | F66: 円 | G66: =IF($K$58="９回",INT($C$30/VLOOKUP($K$58,読込!$H$3:$I$7,2,FALSE)),"") -> 984 | J66: 円 | K66: =IF($K$58="９回",INT($C$34/VLOOKUP($K$58,読込!$H$3:$I$7,2,FALSE)),"") -> 0 | P66: 円 | W66: 円
B67: =IF($K$58="９回",EDATE(B66,1),"") -> 2023-06-01 | C67: =IF($K$58="９回",SUM(G67,K67,R67),"") -> 984 | F67: 円 | G67: =IF($K$58="９回",INT($C$30/VLOOKUP($K$58,読込!$H$3:$I$7,2,FALSE)),"") -> 984 | J67: 円 | K67: =IF($K$58="９回",INT($C$34/VLOOKUP($K$58,読込!$H$3:$I$7,2,FALSE)),"") -> 0 | P67: 円 | W67: 円
B68: =IF($K$58="９回",EDATE(B67,1),"") -> 2023-07-01 | C68: =IF($K$58="９回",SUM(G68,K68,R68),"") -> 984 | F68: 円 | G68: =IF($K$58="９回",INT($C$30/VLOOKUP($K$58,読込!$H$3:$I$7,2,FALSE)),"") -> 984 | J68: 円 | K68: =IF($K$58="９回",INT($C$34/VLOOKUP($K$58,読込!$H$3:$I$7,2,FALSE)),"") -> 0 | P68: 円 | W68: 円
B69: =IF($K$58="９回",EDATE(B68,1),"") -> 2023-08-01 | C69: =IF($K$58="９回",SUM(G69,K69,R69),"") -> 984 | F69: 円 | G69: =IF($K$58="９回",INT($C$30/VLOOKUP($K$58,読込!$H$3:$I$7,2,FALSE)),"") -> 984 | J69: 円 | K69: =IF($K$58="９回",INT($C$34/VLOOKUP($K$58,読込!$H$3:$I$7,2,FALSE)),"") -> 0 | P69: 円 | W69: 円

Sheet 読込 (hidden)
A1: 加入方式等ドロップダウンリスト | AC1: 開始月 | AD1: 開始年
A2: 限度額区分 | B2: 積立金 | C2: 支払率 | D2: 下限 | E2: 申告の種類 | H2: 支払回数 | K2: 引き落とし月表示 | AC2: 1 | AD2: 4
A3: 80 | B3: 10 | C3: 90 | D3: 設定なし | E3: 青色申告（複式） | H3: ９回 | I3: 9 | K3: 1回目 | L3: =DATE(算出シート!C6+2018,算出シート!F6-1,1) -> 2022-12-01 | AC3: 2 | AD3: 5
A4: 78 | B4: 5 | C4: 80 | D4: 50 | E4: 青色申告（簡易） | H4: ５回 | I4: 5 | AC4: 3 | AD4: 6
A5: 75 | B5: 選択なし | C5: 70 | D5: 60 | E5: 白色申告 | H5: ３回 | I5: 3 | AC5: 4 | AD5: 7
A6: 70 | C6: 60 | D6: 70 | E6: 青色申告（現金主義） | H6: ２回 | I6: 2 | AC6: 5 | AD6: 8
A7: 60 | C7: 50 | H7: 一括 | I7: 1 | AC7: 6 | AD7: 9
A8: 50 | C8: 40 | AC8: 7 | AD8: 10
C9: 30 | AA9: 青色申告 | AB9: 個人 | AC9: 8 | AD9: 11
C10: 20 | AA10: 白色申告 | AB10: 法人 | AC10: 9 | AD10: 12
C11: 10 | AC11: 10 | AD11: 13
AC12: 11 | AD12: 14
A13: 加入区分 | C13: 継続加入割引 | F13: 自動継続特約付与 | AC13: 12 | AD13: 15
A14: 新規加入 | C14: 継続加入区分 | D14: FALSE | F14: 自動継続特約 | G14: FALSE
A15: 継続加入
I16: グラフ文字表示 | J16: =" 農業収入 " -> 農業収入 | L16: 農業収入表示 | M16: =IF(OR(算出シート!X2=読込!P20,算出シート!X2=P19,算出シート!X2=P18,算出シート!X2=P17),"",算出シート!X2) -> 400000 | O16: 積立割合 | P16: =IF(算出シート!C23="選択なし","",算出シート!C19+算出シート!C23) -> 90 | Q16: 保険割合 | R16: =算出シート!$C$19 -> 80 | S16: 下限設定 | T16: =IF(算出シート!$H$19="設定なし","",算出シート!$H$19) -> 
B17: 初年度割あり | C17: 初年度割なし | D17: 自動継続特約あり | J17: =IF(算出シート!C23="選択なし",""," 積立方式 ") -> 積立方式 | O17: 基準収入 | P17: =算出シート!C14 -> 1000000
A18: 付加保険料計算 | B18: =IF(算出シート!C14=0,0,INT(IF(VLOOKUP(算出シート!H19,読込!A19:B22,2,FALSE)>=300000,255000+(VLOOKUP(算出シート!H19,読込!A19:B22,2,FALSE)-300000)*0.3,IF(VLOOKUP(算出シート!H19,読込!A19:B22,2,FALSE)>=150000,150000+(VLOOKUP(算出シート!H19,読込!A19:B22,2,FALSE)-150000)*0.7,VLOOKUP(算出シート!H19,読込!A19:B22,2,FALSE))))) -> 6282 | C18: =IF(算出シート!C14=0,0,INT(IF(VLOOKUP(算出シート!H19,読込!A19:C22,3,FALSE)>=300000,255000+(VLOOKUP(算出シート!H19,読込!A19:C22,3,FALSE)-300000)*0.3,IF(VLOOKUP(算出シート!H19,読込!A19:C22,3,FALSE)>=150000,150000+(VLOOKUP(算出シート!H19,読込!A19:C22,3,FALSE)-150000)*0.7,VLOOKUP(算出シート!H19,読込!A19:C22,3,FALSE))))) -> 4982 | D18: =C18-1000 -> 3982 | J18: =IF(算出シート!$H$19="設定なし"," 保険方式 "," 保険方式 ") -> 保険方式 | M18: =IF(算出シート!$C$23="選択なし","","補てん限度額：下回ると補償が発動します") -> 補てん限度額：下回ると補償が発動します | O18: 補填限度額 | P18: =IF(算出シート!C23="選択なし","",(INT(P17*算出シート!C23*0.01)+INT(P17*算出シート!C19*0.01))) -> 900000
A19: 設定なし | B19: =IF(算出シート!C23="選択なし",INT(INT(INT(算出シート!C14*算出シート!C19*0.01)*算出シート!P19*0.01)*22/10000)+4500,INT((INT(INT(算出シート!C14*算出シート!C19*0.01)*算出シート!P19*0.01)+(INT(INT(算出シート!C14*算出シート!C23*0.01)*算出シート!P23*0.01)))*22/10000)+4500) -> 6282 | C19: =B19-1300 -> 4982 | J19: =IF(算出シート!H19="設定なし","",IF(読込!P20<=算出シート!X2,"","補償対象外")) ->  | M19: =IF(算出シート!$C$23="選択なし","補てん限度額：下回ると補償が発動します","") ->  | O19: 保険限度額 | P19: =INT(P17*(算出シート!C19)/100) -> 800000
A20: 50 | B20: =IF(算出シート!C23="選択なし",INT(INT(INT(算出シート!C14*算出シート!C19*0.01)*算出シート!P19*0.01)*21/10000)+4500,INT((INT(INT(算出シート!C14*算出シート!C19*0.01)*算出シート!P19*0.01)+(INT(INT(算出シート!C14*算出シート!C23*0.01)*算出シート!P23*0.01)))*21/10000)+4500) -> 6201 | C20: =B20-1300 -> 4901 | J20: =IF(算出シート!H19="設定なし","",IF(読込!P20<=算出シート!X2,"","補償対象外")) ->  | M20: =IF(算出シート!$H$19="設定なし","","これより下は補償されません") ->  | O20: 下限設定金額 | P20: =IF(算出シート!H19="設定なし","",ROUNDUP(P17*VLOOKUP(算出シート!H19,読込!C25:D28,2,FALSE)/100,0)) -> 
A21: 60 | B21: =IF(算出シート!C23="選択なし",INT(INT(INT(算出シート!C14*算出シート!C19*0.01)*算出シート!P19*0.01)*20/10000)+4500,INT((INT(INT(算出シート!C14*算出シート!C19*0.01)*算出シート!P19*0.01)+(INT(INT(算出シート!C14*算出シート!C23*0.01)*算出シート!P23*0.01)))*20/10000)+4500) -> 6120 | C21: 4820 | J21: =IF(算出シート!H19="設定なし","",IF(読込!P20=算出シート!X2,"","（下限設定）")) ->  | O21: 受取金額 | P21: =IF(算出シート!C23="選択なし",INT((INT(算出シート!C14*算出シート!C19*0.01)-算出シート!X2)*算出シート!P19*0.01),IF((INT(算出シート!C14*算出シート!C23*0.01)+INT(算出シート!C14*算出シート!C19*0.01)-算出シート!X2)>INT(算出シート!C14*算出シート!C23*0.01),INT(INT(算出シート!C14*算出シート!C23*0.01)*算出シート!P23*0.01)+INT((INT(算出シート!C14*算出シート!C19*0.01)-算出シート!X2)*算出シート!P19*0.01),INT(((INT(算出シート!C14*算出シート!C23*0.01)+INT(算出シート!C14*算出シート!C19*0.01))-算出シート!X2)*算出シート!P23*0.01))) -> 450000
A22: 70 | B22: =IF(算出シート!C23="選択なし",INT(INT(INT(算出シート!C14*算出シート!C19*0.01)*算出シート!P19*0.01)*18/10000)+4500,INT((INT(INT(算出シート!C14*算出シート!C19*0.01)*算出シート!P19*0.01)+(INT(INT(算出シート!C14*算出シート!C23*0.01)*算出シート!P23*0.01)))*18/10000)+4500) -> 5958 | C22: 4658
H23: グラフ作成数値 | J23: 上 | L23: 下
A24: 積立金 | C24: 下限 | I24: 自己負担部分 | J24: 参照値 | L24: 参照値
A25: 10 | B25: 10 | C25: 設定なし | D25: 0 | I25: =100-算出シート!$C$19-+算出シート!$C$23 -> 10 | J25: 自己負担 | K25: =(675-(M26)-M27) -> 90 | L25: 自己負担 | M25: =(675-(M26)-M27) -> 90 | O25: 250 | P25: 積立文字縦 | Q25: =M26/2.6 -> 34.61538462 | R25: 積立文字横幅 | S25: =O26-(O26/22) -> 214.7727273
A26: 5 | B26: 5 | C26: 50 | D26: 50 | J26: 積立 | K26: =VLOOKUP(算出シート!$C$23,A25:B27,2,FALSE)*10*0.9 -> 90 | L26: 積立 | M26: =VLOOKUP(算出シート!$C$23,A25:B27,2,FALSE)*10*0.9 -> 90 | N26: 支払率 | O26: =算出シート!$P$23*2.5 -> 225 | P26: 積立自己負担 | Q26: =M26-(O26/30) -> 82.5 | R26: =O26/4 -> 56.25 | S26: 外 | T26: =M26 -> 90 | U26: =+R26+R26/10 -> 61.875
A27: 選択なし | B27: 0 | C27: 60 | D27: 60 | J27: 保険 | K27: =(算出シート!$C$19*10-500)*0.9+250*0.9 -> 495 | L27: 保険 | M27: =((算出シート!$C$19*10)-500)*0.9+250*0.9 -> 495 | O27: =算出シート!$P$19*2.5 -> 225
C28: 70 | D28: 70 | J28: 保険表示 | K28: =M27-N30-M29 -> 315 | L28: 保険表示幅 | M28: =IF(M30>M29,M27-M30,M27-M29) -> 315
J29: 保険期間農業収入 | K29: =IF(算出シート!$X$2="",0,IF((算出シート!$X$2/算出シート!$C$14*1000)>=500,((算出シート!$X$2/算出シート!$C$14*1000)-500)*0.9+225,算出シート!$X$2/算出シート!$C$14*500*0.9)) -> 180 | L29: 保険期間農業収入 | M29: =IF((算出シート!$X$2/算出シート!$C$14*1000)>=1000,675,IF(算出シート!$X$2="",0,IF((算出シート!$X$2/算出シート!$C$14*1000)>=500,((算出シート!$X$2/算出シート!$C$14*1000)-500)*0.9+225,算出シート!$X$2/算出シート!$C$14*500*0.9))) -> 180 | O29: 250 | P29: テキスト表示 | Q29: =IF(M29=0,0,IF(M29<30,M29,30)) -> 30
J30: 下限 | K30: =IF(算出シート!H19="設定なし",0,((VLOOKUP(算出シート!H19,読込!C25:D28,2,FALSE))*10-500))*0.9+IF(算出シート!H19="設定なし",0,250*0.9)-M29 -> -180 | L30: 下限 | M30: =IF(算出シート!H19="設定なし",0,((VLOOKUP(算出シート!H19,読込!C25:D28,2,FALSE))*10-500))*0.9+IF(算出シート!H19="設定なし",0,250*0.9) -> 0 | N30: =IF(M30<=0,0,M30) -> 0
L31: 補償対象外文字 | M31: =M30-M29 -> -180
L32: =IF(算出シート!C23="選択なし","","積立方式") -> 積立方式
A33: 積立継続計算フラグ
A34: 2 | B34: 1 | C34: =IF(算出シート!C23="選択なし",0,ROUNDUP(PRODUCT(PRODUCT(INT(INT(算出シート!C14*算出シート!C23*0.01)*算出シート!P23*0.01)),0.25),0)) -> 22500
B35: 2 | C35: 0

Sheet 掛金率 (hidden)
A2: =算出シート!C19&","&算出シート!H19&","&算出シート!B27 -> 80,設定なし,0 | B2: 0.8 | C2: 保険方式の補償限度
B3: 設定なし | C3: 保険方式の補償の下限 | G3: 10
B4: 危険段階区分 | C4: 危険段階別 | G4: 9
C5: 保険料率 | G5: 8
C6: （％） | G6: 7
A7: 80,設定なし,10 | B7: 10 | C7: 5.248 | G7: 6
A8: 80,設定なし,9 | B8: 9 | C8: 3.546 | G8: 5
A9: 80,設定なし,8 | B9: 8 | C9: 3.425 | E9: =VLOOKUP(A2,A7:C384,3,FALSE) -> 2.46 | G9: 4
A10: 80,設定なし,7 | B10: 7 | C10: 3.305 | G10: 3
A11: 80,設定なし,6 | B11: 6 | C11: 3.184 | G11: 2
A12: 80,設定なし,5 | B12: 5 | C12: 3.063 | G12: 1
A13: 80,設定なし,4 | B13: 4 | C13: 2.943 | G13: 0
A14: 80,設定なし,3 | B14: 3 | C14: 2.822 | G14: -1
A15: 80,設定なし,2 | B15: 2 | C15: 2.701 | G15: -2
A16: 80,設定なし,1 | B16: 1 | C16: 2.581 | G16: -3
A17: 80,設定なし,0 | B17: 0 | C17: 2.46 | G17: -4
A18: 80,設定なし,-1 | B18: -1 | C18: 2.339 | G18: -5
A19: 80,設定なし,-2 | B19: -2 | C19: 2.219 | G19: -6
A20: 80,設定なし,-3 | B20: -3 | C20: 2.098 | G20: -7
A21: 80,設定なし,-4 | B21: -4 | C21: 1.977 | G21: -8
A22: 80,設定なし,-5 | B22: -5 | C22: 1.857 | G22: -9
A23: 80,設定なし,-6 | B23: -6 | C23: 1.736 | G23: -10
A24: 80,設定なし,-7 | B24: -7 | C24: 1.615
A25: 80,設定なし,-8 | B25: -8 | C25: 1.495
A26: 80,設定なし,-9 | B26: -9 | C26: 1.374
A27: 80,設定なし,-10 | B27: -10 | C27: 1.23
A28: 78,設定なし,10 | B28: 10 | C28: 4.642
A29: 78,設定なし,9 | B29: 9 | C29: 3.137
A30: 78,設定なし,8 | B30: 8 | C30: 3.03
A31: 78,設定なし,7 | B31: 7 | C31: 2.923
A32: 78,設定なし,6 | B32: 6 | C32: 2.816
A33: 78,設定なし,5 | B33: 5 | C33: 2.71
A34: 78,設定なし,4 | B34: 4 | C34: 2.603
A35: 78,設定なし,3 | B35: 3 | C35: 2.496
A36: 78,設定なし,2 | B36: 2 | C36: 2.389
A37: 78,設定なし,1 | B37: 1 | C37: 2.283
A38: 78,設定なし,0 | B38: 0 | C38: 2.176
A39: 78,設定なし,-1 | B39: -1 | C39: 2.069
A40: 78,設定なし,-2 | B40: -2 | C40: 1.963
A41: 78,設定なし,-3 | B41: -3 | C41: 1.856
A42: 78,設定なし,-4 | B42: -4 | C42: 1.749
A43: 78,設定なし,-5 | B43: -5 | C43: 1.642
A44: 78,設定なし,-6 | B44: -6 | C44: 1.536
A45: 78,設定なし,-7 | B45: -7 | C45: 1.429
A46: 78,設定なし,-8 | B46: -8 | C46: 1.322
A47: 78,設定なし,-9 | B47: -9 | C47: 1.215
A48: 78,設定なし,-10 | B48: -10 | C48: 1.088
A49: 75,設定なし,10 | B49: 10 | C49: 3.859
A50: 75,設定なし,9 | B50: 9 | C50: 2.608
A51: 75,設定なし,8 | B51: 8 | C51: 2.519
A52: 75,設定なし,7 | B52: 7 | C52: 2.43
A53: 75,設定なし,6 | B53: 6 | C53: 2.341
A54: 75,設定なし,5 | B54: 5 | C54: 2.253
A55: 75,設定なし,4 | B55: 4 | C55: 2.164
A56: 75,設定なし,3 | B56: 3 | C56: 2.075
A57: 75,設定なし,2 | B57: 2 | C57: 1.986
A58: 75,設定なし,1 | B58: 1 | C58: 1.898
A59: 75,設定なし,0 | B59: 0 | C59: 1.809
A60: 75,設定なし,-1 | B60: -1 | C60: 1.72
A61: 75,設定なし,-2 | B61: -2 | C61: 1.632
A62: 75,設定なし,-3 | B62: -3 | C62: 1.543
A63: 75,設定なし,-4 | B63: -4 | C63: 1.454
A64: 75,設定なし,-5 | B64: -5 | C64: 1.365
A65: 75,設定なし,-6 | B65: -6 | C65: 1.277
A66: 75,設定なし,-7 | B66: -7 | C66: 1.188
A67: 75,設定なし,-8 | B67: -8 | C67: 1.099
A68: 75,設定なし,-9 | B68: -9 | C68: 1.01
A69: 75,設定なし,-10 | B69: -10 | C69: 0.905
A70: 70,設定なし,10 | B70: 10 | C70: 2.85
A71: 70,設定なし,9 | B71: 9 | C71: 1.926
A72: 70,設定なし,8 | B72: 8 | C72: 1.86
A73: 70,設定なし,7 | B73: 7 | C73: 1.795
A74: 70,設定なし,6 | B74: 6 | C74: 1.729
A75: 70,設定なし,5 | B75: 5 | C75: 1.664
A76: 70,設定なし,4 | B76: 4 | C76: 1.598
A77: 70,設定なし,3 | B77: 3 | C77: 1.533
A78: 70,設定なし,2 | B78: 2 | C78: 1.467
A79: 70,設定なし,1 | B79: 1 | C79: 1.402
A80: 70,設定なし,0 | B80: 0 | C80: 1.336
A81: 70,設定なし,-1 | B81: -1 | C81: 1.27
A82: 70,設定なし,-2 | B82: -2 | C82: 1.205
A83: 70,設定なし,-3 | B83: -3 | C83: 1.139
A84: 70,設定なし,-4 | B84: -4 | C84: 1.074
A85: 70,設定なし,-5 | B85: -5 | C85: 1.008
A86: 70,設定なし,-6 | B86: -6 | C86: 0.943
A87: 70,設定なし,-7 | B87: -7 | C87: 0.877
A88: 70,設定なし,-8 | B88: -8 | C88: 0.812
A89: 70,設定なし,-9 | B89: -9 | C89: 0.746
A90: 70,設定なし,-10 | B90: -10 | C90: 0.668
A91: 60,設定なし,10 | B91: 10 | C91: 1.602
A92: 60,設定なし,9 | B92: 9 | C92: 1.083
A93: 60,設定なし,8 | B93: 8 | C93: 1.046
A94: 60,設定なし,7 | B94: 7 | C94: 1.009
A95: 60,設定なし,6 | B95: 6 | C95: 0.972
A96: 60,設定なし,5 | B96: 5 | C96: 0.935
A97: 60,設定なし,4 | B97: 4 | C97: 0.898
A98: 60,設定なし,3 | B98: 3 | C98: 0.862
A99: 60,設定なし,2 | B99: 2 | C99: 0.825
A100: 60,設定なし,1 | B100: 1 | C100: 0.788
A101: 60,設定なし,0 | B101: 0 | C101: 0.751
A102: 60,設定なし,-1 | B102: -1 | C102: 0.714
A103: 60,設定なし,-2 | B103: -2 | C103: 0.677
A104: 60,設定なし,-3 | B104: -3 | C104: 0.64
A105: 60,設定なし,-4 | B105: -4 | C105: 0.604
A106: 60,設定なし,-5 | B106: -5 | C106: 0.567
A107: 60,設定なし,-6 | B107: -6 | C107: 0.53
A108: 60,設定なし,-7 | B108: -7 | C108: 0.493
A109: 60,設定なし,-8 | B109: -8 | C109: 0.456
A110: 60,設定なし,-9 | B110: -9 | C110: 0.419
A111: 60,設定なし,-10 | B111: -10 | C111: 0.376
A112: 50,設定なし,10 | B112: 10 | C112: 0.962
A113: 50,設定なし,9 | B113: 9 | C113: 0.65
A114: 50,設定なし,8 | B114: 8 | C114: 0.628
A115: 50,設定なし,7 | B115: 7 | C115: 0.606
A116: 50,設定なし,6 | B116: 6 | C116: 0.584
A117: 50,設定なし,5 | B117: 5 | C117: 0.562
A118: 50,設定なし,4 | B118: 4 | C118: 0.539
A119: 50,設定なし,3 | B119: 3 | C119: 0.517
A120: 50,設定なし,2 | B120: 2 | C120: 0.495
A121: 50,設定なし,1 | B121: 1 | C121: 0.473
A122: 50,設定なし,0 | B122: 0 | C122: 0.451
A123: 50,設定なし,-1 | B123: -1 | C123: 0.429
A124: 50,設定なし,-2 | B124: -2 | C124: 0.407
A125: 50,設定なし,-3 | B125: -3 | C125: 0.385
A126: 50,設定なし,-4 | B126: -4 | C126: 0.363
A127: 50,設定なし,-5 | B127: -5 | C127: 0.34
A128: 50,設定なし,-6 | B128: -6 | C128: 0.318
A129: 50,設定なし,-7 | B129: -7 | C129: 0.296
A130: 50,設定なし,-8 | B130: -8 | C130: 0.274
A131: 50,設定なし,-9 | B131: -9 | C131: 0.252
A132: 50,設定なし,-10 | B132: -10 | C132: 0.226
A133: 80,50,10 | B133: 10 | C133: 4.761
A134: 80,50,9 | B134: 9 | C134: 3.217
A135: 80,50,8 | B135: 8 | C135: 3.108
A136: 80,50,7 | B136: 7 | C136: 2.998
A137: 80,50,6 | B137: 6 | C137: 2.889
A138: 80,50,5 | B138: 5 | C138: 2.779
A139: 80,50,4 | B139: 4 | C139: 2.67
A140: 80,50,3 | B140: 3 | C140: 2.56
A141: 80,50,2 | B141: 2 | C141: 2.451
A142: 80,50,1 | B142: 1 | C142: 2.341
A143: 80,50,0 | B143: 0 | C143: 2.232
A144: 80,50,-1 | B144: -1 | C144: 2.123
A145: 80,50,-2 | B145: -2 | C145: 2.013
A146: 80,50,-3 | B146: -3 | C146: 1.904
A147: 80,50,-4 | B147: -4 | C147: 1.794
A148: 80,50,-5 | B148: -5 | C148: 1.685
A149: 80,50,-6 | B149: -6 | C149: 1.575
A150: 80,50,-7 | B150: -7 | C150: 1.466
A151: 80,50,-8 | B151: -8 | C151: 1.356
A152: 80,50,-9 | B152: -9 | C152: 1.247
A153: 80,50,-10 | B153: -10 | C153: 1.116
A154: 80,60,10 | B154: 10 | C154: 4.177
A155: 80,60,9 | B155: 9 | C155: 2.822
A156: 80,60,8 | B156: 8 | C156: 2.726
A157: 80,60,7 | B157: 7 | C157: 2.63
A158: 80,60,6 | B158: 6 | C158: 2.534
A159: 80,60,5 | B159: 5 | C159: 2.438
A160: 80,60,4 | B160: 4 | C160: 2.342
A161: 80,60,3 | B161: 3 | C161: 2.246
A162: 80,60,2 | B162: 2 | C162: 2.15
A163: 80,60,1 | B163: 1 | C163: 2.054
A164: 80,60,0 | B164: 0 | C164: 1.958
A165: 80,60,-1 | B165: -1 | C165: 1.862
A166: 80,60,-2 | B166: -2 | C166: 1.766
A167: 80,60,-3 | B167: -3 | C167: 1.67
A168: 80,60,-4 | B168: -4 | C168: 1.574
A169: 80,60,-5 | B169: -5 | C169: 1.478
A170: 80,60,-6 | B170: -6 | C170: 1.382
A171: 80,60,-7 | B171: -7 | C171: 1.286
A172: 80,60,-8 | B172: -8 | C172: 1.19
A173: 80,60,-9 | B173: -9 | C173: 1.094
A174: 80,60,-10 | B174: -10 | C174: 0.979
A175: 80,70,10 | B175: 10 | C175: 2.916
A176: 80,70,9 | B176: 9 | C176: 1.971
A177: 80,70,8 | B177: 8 | C177: 1.903
A178: 80,70,7 | B178: 7 | C178: 1.836
A179: 80,70,6 | B179: 6 | C179: 1.769
A180: 80,70,5 | B180: 5 | C180: 1.702
A181: 80,70,4 | B181: 4 | C181: 1.635
A182: 80,70,3 | B182: 3 | C182: 1.568
A183: 80,70,2 | B183: 2 | C183: 1.501
A184: 80,70,1 | B184: 1 | C184: 1.434
A185: 80,70,0 | B185: 0 | C185: 1.367
A186: 80,70,-1 | B186: -1 | C186: 1.3
A187: 80,70,-2 | B187: -2 | C187: 1.233
A188: 80,70,-3 | B188: -3 | C188: 1.166
A189: 80,70,-4 | B189: -4 | C189: 1.099
A190: 80,70,-5 | B190: -5 | C190: 1.032
A191: 80,70,-6 | B191: -6 | C191: 0.965
A192: 80,70,-7 | B192: -7 | C192: 0.898
A193: 80,70,-8 | B193: -8 | C193: 0.831
A194: 80,70,-9 | B194: -9 | C194: 0.763
A195: 80,70,-10 | B195: -10 | C195: 0.684
A196: 78,50,10 | B196: 10 | C196: 4.136
A197: 78,50,9 | B197: 9 | C197: 2.795
A198: 78,50,8 | B198: 8 | C198: 2.7
A199: 78,50,7 | B199: 7 | C199: 2.605
A200: 78,50,6 | B200: 6 | C200: 2.51
A201: 78,50,5 | B201: 5 | C201: 2.415
... 183 more rows
